[Event "Titled Tuesday Blitz April 05 Early 2022"]
[White "Martin Carmona, Gaston Manuel"]
[Black "Tregubov, Pavel V."]
[WhiteFideId "22284567"]
[BlackFideId "4115341"]
[WhiteElo "2146"]
[BlackElo "2341"]
[Result "0-1"]
[Round "11"]
[TimeControl "180+1"]
[Date "2022.04.05"]
[WhiteClock "0:00:03"]
[BlackClock "0:00:08"]

1. d4 {[%clk 0:03:00]}  Nf6 {[%clk 0:02:59]} 2. Nf3 {[%clk 0:03:01]}  e6 {[%clk 0:02:58]} 3. c4 {[%clk 0:03:00]}  Bb4+ {[%clk 0:02:57]} 4. Bd2 {[%clk 0:03:00]}  Qe7 {[%clk 0:02:57]} 5. g3 {[%clk 0:02:58]}  Bxd2+ {[%clk 0:02:57]} 6. Qxd2 {[%clk 0:02:39]}  Nc6 {[%clk 0:02:56]} 7. e3 {[%clk 0:02:34]}  O-O {[%clk 0:02:54]} 8. Bg2 {[%clk 0:02:33]}  d5 {[%clk 0:02:50]} 9. O-O {[%clk 0:02:23]}  dxc4 {[%clk 0:02:48]} 10. Na3 {[%clk 0:02:19]}  e5 {[%clk 0:02:48]} 11. Nxc4 {[%clk 0:01:59]}  exd4 {[%clk 0:02:46]} 12. Nxd4 {[%clk 0:02:00]}  Nxd4 {[%clk 0:02:44]} 13. Qxd4 {[%clk 0:02:01]}  Rd8 {[%clk 0:02:39]} 14. Qh4 {[%clk 0:01:54]}  c6 {[%clk 0:02:31]} 15. Rfd1 {[%clk 0:01:53]}  Bg4 {[%clk 0:02:26]} 16. Rdc1 {[%clk 0:01:47]}  h6 {[%clk 0:02:22]} 17. h3 {[%clk 0:01:47]}  Be6 {[%clk 0:02:17]} 18. Qf4 {[%clk 0:01:30]}  Bd5 {[%clk 0:02:00]} 19. Rd1 {[%clk 0:01:23]}  g5 {[%clk 0:01:42]} 20. Qe5 {[%clk 0:01:20]}  Qxe5 {[%clk 0:01:41]} 21. Nxe5 {[%clk 0:01:21]}  Kf8 {[%clk 0:01:26]} 22. Nd3 {[%clk 0:01:13]}  Ke7 {[%clk 0:01:22]} 23. Nc5 {[%clk 0:01:09]}  Bxg2 {[%clk 0:01:15]} 24. Kxg2 {[%clk 0:01:09]}  b6 {[%clk 0:01:16]} 25. Nb3 {[%clk 0:01:07]}  c5 {[%clk 0:01:16]} 26. Kf3 {[%clk 0:01:06]}  Ke6 {[%clk 0:01:16]} 27. g4 {[%clk 0:01:02]}  Ke5 {[%clk 0:01:10]} 28. Nd2 {[%clk 0:00:59]}  Ke6 {[%clk 0:01:08]} 29. Nc4 {[%clk 0:00:58]}  Rd5 {[%clk 0:01:03]} 30. Rxd5 {[%clk 0:00:52]}  Nxd5 {[%clk 0:01:03]} 31. h4 {[%clk 0:00:52]}  b5 {[%clk 0:00:53]} 32. Nd2 {[%clk 0:00:50]}  Nf6 {[%clk 0:00:41]} 33. hxg5 {[%clk 0:00:50]}  hxg5 {[%clk 0:00:41]} 34. Nb3 {[%clk 0:00:33]}  Rc8 {[%clk 0:00:41]} 35. Rc1 {[%clk 0:00:32]}  Kd5 {[%clk 0:00:38]} 36. Rd1+ {[%clk 0:00:31]}  Ke5 {[%clk 0:00:38]} 37. Rc1 {[%clk 0:00:31]}  Ne4 {[%clk 0:00:36]} 38. Nd4 {[%clk 0:00:27]}  a6 {[%clk 0:00:34]} 39. Nf5 {[%clk 0:00:27]}  Rd8 {[%clk 0:00:31]} 40. Rc2 {[%clk 0:00:23]}  Rd2 {[%clk 0:00:24]} 41. Rxd2 {[%clk 0:00:22]}  Nxd2+ {[%clk 0:00:25]} 42. Ke2 {[%clk 0:00:22]}  Nc4 {[%clk 0:00:23]} 43. b3 {[%clk 0:00:22]}  Nb6 {[%clk 0:00:21]} 44. f3 {[%clk 0:00:20]}  Nd5 {[%clk 0:00:21]} 45. Nh6 {[%clk 0:00:17]}  Nc3+ {[%clk 0:00:20]} 46. Kd3 {[%clk 0:00:17]}  Nxa2 {[%clk 0:00:21]} 47. Nxf7+ {[%clk 0:00:17]}  Kf6 {[%clk 0:00:21]} 48. Nd6 {[%clk 0:00:16]}  Nb4+ {[%clk 0:00:21]} 49. Kd2 {[%clk 0:00:16]}  Nd5 {[%clk 0:00:19]} 50. Ne4+ {[%clk 0:00:16]}  Kg6 {[%clk 0:00:19]} 51. Nxc5 {[%clk 0:00:16]}  a5 {[%clk 0:00:19]} 52. Kd3 {[%clk 0:00:14]}  Nb4+ {[%clk 0:00:16]} 53. Kd4 {[%clk 0:00:13]}  Nc2+ {[%clk 0:00:17]} 54. Ke4 {[%clk 0:00:14]}  Kf6 {[%clk 0:00:17]} 55. Kd3 {[%clk 0:00:11]}  Nb4+ {[%clk 0:00:17]} 56. Kd4 {[%clk 0:00:11]}  Nc2+ {[%clk 0:00:17]} 57. Ke4 {[%clk 0:00:11]}  Ke7 {[%clk 0:00:16]} 58. f4 {[%clk 0:00:11]}  Kf6 {[%clk 0:00:16]} 59. Nd3 {[%clk 0:00:10]}  a4 {[%clk 0:00:15]} 60. bxa4 {[%clk 0:00:10]}  bxa4 {[%clk 0:00:16]} 61. Nc1 {[%clk 0:00:11]}  a3 {[%clk 0:00:16]} 62. Na2 {[%clk 0:00:10]}  Ne1 {[%clk 0:00:14]} 63. f5 {[%clk 0:00:09]}  Ng2 {[%clk 0:00:14]} 64. Kf3 {[%clk 0:00:09]}  Ne1+ {[%clk 0:00:14]} 65. Kf2 {[%clk 0:00:09]}  Nd3+ {[%clk 0:00:14]} 66. Ke2 {[%clk 0:00:09]}  Ne5 {[%clk 0:00:15]} 67. e4 {[%clk 0:00:10]}  Nxg4 {[%clk 0:00:15]} 68. Kf3 {[%clk 0:00:11]}  Ne5+ {[%clk 0:00:15]} 69. Ke3 {[%clk 0:00:11]}  Ke7 {[%clk 0:00:14]} 70. Kd4 {[%clk 0:00:11]}  Kd6 {[%clk 0:00:14]} 71. Nc3 {[%clk 0:00:09]}  Nc6+ {[%clk 0:00:12]} 72. Ke3 {[%clk 0:00:09]}  Ke5 {[%clk 0:00:12]} 73. Kf3 {[%clk 0:00:09]}  Nd4+ {[%clk 0:00:10]} 74. Kg4 {[%clk 0:00:08]}  Kf6 {[%clk 0:00:10]} 75. e5+ {[%clk 0:00:07]}  Kxe5 {[%clk 0:00:10]} 76. Kxg5 {[%clk 0:00:08]}  Nxf5 {[%clk 0:00:11]} 77. Kg4 {[%clk 0:00:08]}  Nd4 {[%clk 0:00:11]} 78. Kg3 {[%clk 0:00:08]}  Nb5 {[%clk 0:00:11]} 79. Na2 {[%clk 0:00:08]}  Ke4 {[%clk 0:00:11]} 80. Kf2 {[%clk 0:00:08]}  Kd3 {[%clk 0:00:11]} 81. Ke1 {[%clk 0:00:09]}  Kc2 {[%clk 0:00:12]} 82. Nb4+ {[%clk 0:00:08]}  Kb3 {[%clk 0:00:11]} 83. Nd3 {[%clk 0:00:09]}  Nd4 {[%clk 0:00:11]} 84. Kd2 {[%clk 0:00:08]}  Nc6 {[%clk 0:00:10]} 85. Nc5+ {[%clk 0:00:07]}  Kb2 {[%clk 0:00:10]} 86. Nd3+ {[%clk 0:00:07]}  Kb1 {[%clk 0:00:10]} 87. Ne1 {[%clk 0:00:05]}  a2 {[%clk 0:00:09]} 88. Nc2 {[%clk 0:00:06]}  Nb4 {[%clk 0:00:10]} 89. Na3+ {[%clk 0:00:02]}  Kb2 {[%clk 0:00:10]} 90. Nc4+ {[%clk 0:00:03]}  Kb3 {[%clk 0:00:10]} 91. Na5+ {[%clk 0:00:03]}  Ka4 {[%clk 0:00:08]} 0-1


[Site "https://www.chess.com"]

[Event "Titled Tuesday Blitz April 05 Early 2022"]
[White "Melikhov, Evgeny V."]
[Black "Butti, Enrique"]
[WhiteFideId "4122046"]
[BlackFideId "3700470"]
[WhiteElo "1931"]
[BlackElo "2080"]
[Result "1/2-1/2"]
[Round "11"]
[TimeControl "180+1"]
[Date "2022.04.05"]
[WhiteClock "0:00:19"]
[BlackClock "0:00:37"]

1. d4 {[%clk 0:02:52]}  Nf6 {[%clk 0:02:58]} 2. c4 {[%clk 0:02:53]}  e6 {[%clk 0:02:58]} 3. Nc3 {[%clk 0:02:53]}  d5 {[%clk 0:02:57]} 4. cxd5 {[%clk 0:02:52]}  Nxd5 {[%clk 0:02:53]} 5. e4 {[%clk 0:02:52]}  Nxc3 {[%clk 0:02:53]} 6. bxc3 {[%clk 0:02:53]}  c5 {[%clk 0:02:52]} 7. Nf3 {[%clk 0:02:53]}  cxd4 {[%clk 0:02:52]} 8. cxd4 {[%clk 0:02:53]}  Nc6 {[%clk 0:02:51]} 9. Be2 {[%clk 0:02:33]}  Bb4+ {[%clk 0:02:49]} 10. Bd2 {[%clk 0:02:33]}  Bxd2+ {[%clk 0:02:37]} 11. Qxd2 {[%clk 0:02:33]}  O-O {[%clk 0:02:37]} 12. O-O {[%clk 0:02:32]}  b6 {[%clk 0:02:36]} 13. Rad1 {[%clk 0:02:31]}  Bb7 {[%clk 0:02:35]} 14. d5 {[%clk 0:02:23]}  exd5 {[%clk 0:02:34]} 15. exd5 {[%clk 0:02:21]}  Na5 {[%clk 0:02:33]} 16. d6 {[%clk 0:02:19]}  Qd7 {[%clk 0:02:23]} 17. Qd4 {[%clk 0:02:12]}  Bxf3 {[%clk 0:02:03]} 18. Bxf3 {[%clk 0:02:10]}  Rad8 {[%clk 0:02:03]} 19. Rd2 {[%clk 0:02:08]}  Nc6 {[%clk 0:01:50]} 20. Bxc6 {[%clk 0:02:07]}  Qxc6 {[%clk 0:01:49]} 21. d7 {[%clk 0:02:04]}  f6 {[%clk 0:01:49]} 22. Rfd1 {[%clk 0:02:02]}  Rf7 {[%clk 0:01:48]} 23. h4 {[%clk 0:01:50]}  Re7 {[%clk 0:01:42]} 24. h5 {[%clk 0:01:46]}  h6 {[%clk 0:01:40]} 25. Qg4 {[%clk 0:01:44]}  Qc5 {[%clk 0:01:28]} 26. Rd5 {[%clk 0:01:38]}  Qa3 {[%clk 0:01:26]} 27. Qc4 {[%clk 0:01:29]}  Kf8 {[%clk 0:01:23]} 28. Rd6 {[%clk 0:01:22]}  Qc5 {[%clk 0:01:18]} 29. Qd3 {[%clk 0:01:19]}  Qxh5 {[%clk 0:01:12]} 30. Qh7 {[%clk 0:01:18]}  Kf7 {[%clk 0:01:07]} 31. g3 {[%clk 0:01:13]}  Qg4 {[%clk 0:01:05]} 32. Qd3 {[%clk 0:00:59]}  Qe4 {[%clk 0:00:59]} 33. Qb3+ {[%clk 0:00:56]}  Re6 {[%clk 0:00:54]} 34. R1d4 {[%clk 0:00:43]}  Qe1+ {[%clk 0:00:52]} 35. Kg2 {[%clk 0:00:43]}  Ke7 {[%clk 0:00:52]} 36. Qa3 {[%clk 0:00:40]}  Rxd6 {[%clk 0:00:50]} 37. Qxd6+ {[%clk 0:00:39]}  Kf7 {[%clk 0:00:49]} 38. Rd3 {[%clk 0:00:36]}  Qe7 {[%clk 0:00:44]} 39. Qd4 {[%clk 0:00:32]}  Qe6 {[%clk 0:00:42]} 40. Rd2 {[%clk 0:00:22]}  Qc6+ {[%clk 0:00:41]} 41. Kg1 {[%clk 0:00:20]}  Qc5 {[%clk 0:00:40]} 42. Qd3 {[%clk 0:00:19]}  Qc6 {[%clk 0:00:39]} 43. Qd4 {[%clk 0:00:18]}  Qc5 {[%clk 0:00:38]} 44. Qd3 {[%clk 0:00:18]}  Qc6 {[%clk 0:00:37]} 45. Qd4 {[%clk 0:00:19]} 1/2-1/2


[Site "https://www.chess.com"]

[Event "Titled Tuesday Blitz April 05 Early 2022"]
[White "Muradov, Soltan"]
[Black "Hartikainen, Jarmo"]
[WhiteFideId "14002108"]
[BlackFideId "503134"]
[WhiteElo "1854"]
[BlackElo "2114"]
[Result "0-1"]
[Round "11"]
[TimeControl "180+1"]
[Date "2022.04.05"]
[WhiteClock "0:02:46"]
[BlackClock "0:02:31"]

1. b3 {[%clk 0:02:58]}  g6 {[%clk 0:02:59]} 2. Bb2 {[%clk 0:02:59]}  Nf6 {[%clk 0:02:59]} 3. g4 {[%clk 0:02:51]}  h6 {[%clk 0:02:56]} 4. h4 {[%clk 0:02:46]}  Bg7 {[%clk 0:02:57]} 5. g5 {[%clk 0:02:45]}  hxg5 {[%clk 0:02:57]} 6. hxg5 {[%clk 0:02:46]}  Rxh1 {[%clk 0:02:55]} 7. gxf6 {[%clk 0:02:46]}  Bxf6 {[%clk 0:02:51]} 8. Bxf6 {[%clk 0:02:46]}  exf6 {[%clk 0:02:51]} 9. Nf3 {[%clk 0:02:47]}  d5 {[%clk 0:02:43]} 10. d4 {[%clk 0:02:46]}  Bg4 {[%clk 0:02:38]} 11. Qd3 {[%clk 0:02:46]}  Bh3 {[%clk 0:02:31]} 0-1


[Site "https://www.chess.com"]

[Event "Titled Tuesday Blitz April 05 Early 2022"]
[White "Petrovic, Aleksa"]
[Black "Piesik, Piotr"]
[WhiteFideId "967629"]
[BlackFideId "1136194"]
[WhiteElo "2198"]
[BlackElo "2190"]
[Result "0-1"]
[Round "11"]
[TimeControl "180+1"]
[Date "2022.04.05"]
[WhiteClock "0:00:30"]
[BlackClock "0:01:15"]

1. d4 {[%clk 0:03:00]}  c5 {[%clk 0:02:49]} 2. d5 {[%clk 0:02:54]}  e5 {[%clk 0:02:49]} 3. c4 {[%clk 0:02:49]}  d6 {[%clk 0:02:48]} 4. Nc3 {[%clk 0:02:49]}  Be7 {[%clk 0:02:47]} 5. Nf3 {[%clk 0:02:46]}  a6 {[%clk 0:02:47]} 6. e4 {[%clk 0:02:44]}  Bg4 {[%clk 0:02:47]} 7. b3 {[%clk 0:02:19]}  Nd7 {[%clk 0:02:42]} 8. Be2 {[%clk 0:02:18]}  Bxf3 {[%clk 0:02:42]} 9. Bxf3 {[%clk 0:02:17]}  Bg5 {[%clk 0:02:43]} 10. Bb2 {[%clk 0:02:18]}  Ne7 {[%clk 0:02:42]} 11. h4 {[%clk 0:02:17]}  Bh6 {[%clk 0:02:42]} 12. g3 {[%clk 0:02:01]}  f5 {[%clk 0:02:35]} 13. exf5 {[%clk 0:02:00]}  Nxf5 {[%clk 0:02:35]} 14. Ne4 {[%clk 0:01:57]}  Nf6 {[%clk 0:02:28]} 15. Ng5 {[%clk 0:01:42]}  Qa5+ {[%clk 0:01:57]} 16. Kf1 {[%clk 0:01:39]}  Bxg5 {[%clk 0:01:45]} 17. hxg5 {[%clk 0:01:39]}  Ng8 {[%clk 0:01:45]} 18. Be4 {[%clk 0:01:20]}  Nge7 {[%clk 0:01:44]} 19. g4 {[%clk 0:01:03]}  Nd4 {[%clk 0:01:41]} 20. Rxh7 {[%clk 0:01:00]}  Rxh7 {[%clk 0:01:40]} 21. Bxh7 {[%clk 0:01:00]}  O-O-O {[%clk 0:01:38]} 22. Kg2 {[%clk 0:00:57]}  Rf8 {[%clk 0:01:33]} 23. Bxd4 {[%clk 0:00:53]}  cxd4 {[%clk 0:01:32]} 24. Qd3 {[%clk 0:00:52]}  Rf4 {[%clk 0:01:28]} 25. Kg3 {[%clk 0:00:45]}  Kb8 {[%clk 0:01:25]} 26. Be4 {[%clk 0:00:37]}  Rxe4 {[%clk 0:01:22]} 27. Qxe4 {[%clk 0:00:31]}  Qc3+ {[%clk 0:01:22]} 28. Qf3 {[%clk 0:00:32]}  Qxa1 {[%clk 0:01:22]} 29. Qf8+ {[%clk 0:00:31]}  Nc8 {[%clk 0:01:23]} 30. Qxg7 {[%clk 0:00:31]}  Qg1+ {[%clk 0:01:22]} 31. Kf3 {[%clk 0:00:31]}  d3 {[%clk 0:01:16]} 32. Ke3 {[%clk 0:00:30]}  Qf1 {[%clk 0:01:15]} 0-1


[Site "https://www.chess.com"]

[Event "Titled Tuesday Blitz April 05 Early 2022"]
[White "Polster, Christian"]
[Black "Sovetbekova, Nurai"]
[WhiteFideId "12965081"]
[BlackFideId "13801910"]
[WhiteElo "2325"]
[BlackElo "1538"]
[Result "0-1"]
[Round "11"]
[TimeControl "180+1"]
[Date "2022.04.05"]
[WhiteClock "0:00:06"]
[BlackClock "0:00:04"]

1. c4 {[%clk 0:03:00]}  Nf6 {[%clk 0:02:59]} 2. Nc3 {[%clk 0:03:00]}  d5 {[%clk 0:02:58]} 3. cxd5 {[%clk 0:03:00]}  Nxd5 {[%clk 0:02:59]} 4. Nf3 {[%clk 0:02:42]}  g6 {[%clk 0:02:57]} 5. e4 {[%clk 0:02:41]}  Nxc3 {[%clk 0:02:57]} 6. bxc3 {[%clk 0:02:42]}  Bg7 {[%clk 0:02:56]} 7. d4 {[%clk 0:02:42]}  c5 {[%clk 0:02:55]} 8. Bb5+ {[%clk 0:02:27]}  Bd7 {[%clk 0:02:49]} 9. Be2 {[%clk 0:02:21]}  Nc6 {[%clk 0:02:43]} 10. O-O {[%clk 0:02:19]}  Bg4 {[%clk 0:02:24]} 11. d5 {[%clk 0:02:03]}  Bxf3 {[%clk 0:02:08]} 12. gxf3 {[%clk 0:01:55]}  Ne5 {[%clk 0:01:57]} 13. Be3 {[%clk 0:01:51]}  b6 {[%clk 0:01:37]} 14. Qa4+ {[%clk 0:01:34]}  Nd7 {[%clk 0:01:17]} 15. Bb5 {[%clk 0:01:27]}  a6 {[%clk 0:01:05]} 16. Bc6 {[%clk 0:01:22]}  Ra7 {[%clk 0:00:57]} 17. Rab1 {[%clk 0:01:22]}  Bxc3 {[%clk 0:00:45]} 18. Rfc1 {[%clk 0:01:11]}  Bf6 {[%clk 0:00:31]} 19. f4 {[%clk 0:00:52]}  O-O {[%clk 0:00:30]} 20. Bxd7 {[%clk 0:00:41]}  Rxd7 {[%clk 0:00:29]} 21. Rxb6 {[%clk 0:00:41]}  Qxb6 {[%clk 0:00:12]} 22. Qxd7 {[%clk 0:00:41]}  Rd8 {[%clk 0:00:09]} 23. Qa4 {[%clk 0:00:30]}  Bd4 {[%clk 0:00:08]} 24. Bxd4 {[%clk 0:00:21]}  cxd4 {[%clk 0:00:09]} 25. Rd1 {[%clk 0:00:21]}  Rc8 {[%clk 0:00:06]} 26. Qxd4 {[%clk 0:00:19]}  Qa5 {[%clk 0:00:06]} 27. Rd2 {[%clk 0:00:18]}  Rc1+ {[%clk 0:00:06]} 28. Kg2 {[%clk 0:00:18]}  Qc7 {[%clk 0:00:06]} 29. e5 {[%clk 0:00:18]}  e6 {[%clk 0:00:04]} 30. d6 {[%clk 0:00:13]}  Qc6+ {[%clk 0:00:04]} 31. f3 {[%clk 0:00:13]}  Qb5 {[%clk 0:00:03]} 32. Qd3 {[%clk 0:00:12]}  Qc5 {[%clk 0:00:03]} 33. Qd4 {[%clk 0:00:11]}  Qb5 {[%clk 0:00:03]} 34. Rf2 {[%clk 0:00:11]}  Qb1 {[%clk 0:00:02]} 35. Qa7 {[%clk 0:00:08]}  Rg1+ {[%clk 0:00:02]} 36. Kh3 {[%clk 0:00:08]}  Qf5+ {[%clk 0:00:03]} 37. Kh4 {[%clk 0:00:06]}  Qh5# {[%clk 0:00:04]} 0-1


[Site "https://www.chess.com"]

[Event "Titled Tuesday Blitz April 05 Early 2022"]
[White "Potapova, Margarita"]
[Black "Baches Garcia, Guillermo"]
[WhiteFideId "14126869"]
[BlackFideId "2209764"]
[WhiteElo "2216"]
[BlackElo "2499"]
[Result "1-0"]
[Round "11"]
[TimeControl "180+1"]
[Date "2022.04.05"]
[WhiteClock "0:00:14"]
[BlackClock "0:00:01"]

1. e4 {[%clk 0:02:57]}  c5 {[%clk 0:03:00]} 2. Nf3 {[%clk 0:02:53]}  d6 {[%clk 0:03:00]} 3. d4 {[%clk 0:02:50]}  cxd4 {[%clk 0:03:01]} 4. Nxd4 {[%clk 0:02:47]}  Nf6 {[%clk 0:03:02]} 5. Nc3 {[%clk 0:02:47]}  Nc6 {[%clk 0:03:02]} 6. Bg5 {[%clk 0:02:42]}  e6 {[%clk 0:03:02]} 7. Qd2 {[%clk 0:02:42]}  h6 {[%clk 0:03:03]} 8. Bxf6 {[%clk 0:02:40]}  gxf6 {[%clk 0:03:04]} 9. O-O-O {[%clk 0:02:33]}  a6 {[%clk 0:03:03]} 10. Kb1 {[%clk 0:02:32]}  Bd7 {[%clk 0:03:03]} 11. f4 {[%clk 0:02:29]}  Qb6 {[%clk 0:03:02]} 12. Nb3 {[%clk 0:02:11]}  O-O-O {[%clk 0:03:01]} 13. Be2 {[%clk 0:02:09]}  h5 {[%clk 0:03:01]} 14. Bf3 {[%clk 0:01:57]}  Be7 {[%clk 0:03:01]} 15. Rhe1 {[%clk 0:01:53]}  Kb8 {[%clk 0:03:00]} 16. Qe2 {[%clk 0:01:43]}  h4 {[%clk 0:02:53]} 17. Bh5 {[%clk 0:01:43]}  Rdf8 {[%clk 0:02:36]} 18. Bf3 {[%clk 0:01:42]}  Rc8 {[%clk 0:02:34]} 19. Bh5 {[%clk 0:01:39]}  Rcf8 {[%clk 0:02:34]} 20. Bg4 {[%clk 0:01:35]}  Na5 {[%clk 0:02:23]} 21. Nd5 {[%clk 0:01:29]}  exd5 {[%clk 0:02:04]} 22. Bxd7 {[%clk 0:01:30]}  Nxb3 {[%clk 0:01:53]} 23. axb3 {[%clk 0:01:26]}  dxe4 {[%clk 0:01:45]} 24. Qxe4 {[%clk 0:01:27]}  Bd8 {[%clk 0:01:42]} 25. Qd5 {[%clk 0:01:27]}  Bc7 {[%clk 0:01:36]} 26. Re7 {[%clk 0:01:23]}  Qc5 {[%clk 0:01:30]} 27. Rxf7 {[%clk 0:01:17]}  Qxd5 {[%clk 0:01:17]} 28. Rxf8+ {[%clk 0:01:16]}  Rxf8 {[%clk 0:01:17]} 29. Rxd5 {[%clk 0:01:17]}  Rg8 {[%clk 0:01:14]} 30. Bh3 {[%clk 0:01:16]}  Re8 {[%clk 0:00:46]} 31. Rh5 {[%clk 0:01:12]}  Re1+ {[%clk 0:00:46]} 32. Ka2 {[%clk 0:01:13]}  Re2 {[%clk 0:00:46]} 33. c4 {[%clk 0:01:07]}  Bb6 {[%clk 0:00:38]} 34. Rxh4 {[%clk 0:00:59]}  Bd4 {[%clk 0:00:38]} 35. Rh7 {[%clk 0:00:43]}  Rxb2+ {[%clk 0:00:31]} 36. Ka3 {[%clk 0:00:44]}  Rb1 {[%clk 0:00:21]} 37. b4 {[%clk 0:00:38]}  Bc3 {[%clk 0:00:16]} 38. b5 {[%clk 0:00:34]}  a5 {[%clk 0:00:07]} 39. Bf5 {[%clk 0:00:25]}  Rb4 {[%clk 0:00:03]} 40. Be6 {[%clk 0:00:22]}  Bb2+ {[%clk 0:00:02]} 41. Ka2 {[%clk 0:00:21]}  a4 {[%clk 0:00:03]} 42. Bd5 {[%clk 0:00:21]}  a3 {[%clk 0:00:02]} 43. Rxb7+ {[%clk 0:00:20]}  Kc8 {[%clk 0:00:02]} 44. Re7 {[%clk 0:00:18]}  Bc1 {[%clk 0:00:01]} 45. Re2 {[%clk 0:00:16]}  Rb2+ {[%clk 0:00:01]} 46. Rxb2 {[%clk 0:00:17]}  axb2 {[%clk 0:00:01]} 47. g3 {[%clk 0:00:14]}  Kc7 {[%clk 0:00:01]} 48. h4 {[%clk 0:00:14]} 1-0


[Site "https://www.chess.com"]

[Event "Titled Tuesday Blitz April 05 Early 2022"]
[White "Prohorov, Olexandr"]
[Black "Gontcharov, Vladislav"]
[WhiteFideId "14105578"]
[BlackFideId "4123492"]
[WhiteElo "1993"]
[BlackElo "2488"]
[Result "1-0"]
[Round "11"]
[TimeControl "180+1"]
[Date "2022.04.05"]
[WhiteClock "0:00:23"]
[BlackClock "0:00:01"]

1. e4 {[%clk 0:03:00]}  e6 {[%clk 0:02:57]} 2. d4 {[%clk 0:02:59]}  d5 {[%clk 0:02:58]} 3. Nc3 {[%clk 0:02:59]}  Bb4 {[%clk 0:02:57]} 4. Ne2 {[%clk 0:02:58]}  dxe4 {[%clk 0:02:55]} 5. a3 {[%clk 0:02:58]}  Be7 {[%clk 0:02:56]} 6. Ng3 {[%clk 0:02:55]}  Nf6 {[%clk 0:02:56]} 7. Ngxe4 {[%clk 0:02:51]}  Nbd7 {[%clk 0:02:56]} 8. g4 {[%clk 0:02:24]}  Nxe4 {[%clk 0:02:52]} 9. Nxe4 {[%clk 0:02:23]}  Nf6 {[%clk 0:02:52]} 10. Bg2 {[%clk 0:02:12]}  O-O {[%clk 0:02:30]} 11. O-O {[%clk 0:02:11]}  c6 {[%clk 0:02:19]} 12. Ng3 {[%clk 0:02:02]}  e5 {[%clk 0:02:11]} 13. g5 {[%clk 0:02:00]}  Nd5 {[%clk 0:02:05]} 14. dxe5 {[%clk 0:01:54]}  Bxg5 {[%clk 0:02:03]} 15. f4 {[%clk 0:01:49]}  Bh4 {[%clk 0:01:52]} 16. Ne4 {[%clk 0:01:36]}  Qb6+ {[%clk 0:01:42]} 17. Kh1 {[%clk 0:01:35]}  Ne3 {[%clk 0:01:42]} 18. Bxe3 {[%clk 0:01:32]}  Qxe3 {[%clk 0:01:43]} 19. Qh5 {[%clk 0:01:27]}  Be7 {[%clk 0:01:39]} 20. Rae1 {[%clk 0:01:20]}  Qb6 {[%clk 0:01:38]} 21. f5 {[%clk 0:01:17]}  Bd8 {[%clk 0:00:31]} 22. f6 {[%clk 0:01:13]}  Kh8 {[%clk 0:00:21]} 23. fxg7+ {[%clk 0:00:48]}  Kxg7 {[%clk 0:00:19]} 24. Nf6 {[%clk 0:00:44]}  h6 {[%clk 0:00:18]} 25. Rg1 {[%clk 0:00:33]}  Rh8 {[%clk 0:00:01]} 26. Be4+ {[%clk 0:00:23]} 1-0


[Site "https://www.chess.com"]

[Event "Titled Tuesday Blitz April 05 Early 2022"]
[White "Rabineau, Clement"]
[Black "Bashirli, Saadat"]
[WhiteFideId "628891"]
[BlackFideId "13429990"]
[WhiteElo "2237"]
[BlackElo "1173"]
[Result "1-0"]
[Round "11"]
[TimeControl "180+1"]
[Date "2022.04.05"]
[WhiteClock "0:00:15"]
[BlackClock "0:01:18"]

1. e4 {[%clk 0:03:00]}  c5 {[%clk 0:02:58]} 2. c3 {[%clk 0:03:00]}  Nf6 {[%clk 0:02:56]} 3. e5 {[%clk 0:03:00]}  Nd5 {[%clk 0:02:57]} 4. d4 {[%clk 0:03:00]}  cxd4 {[%clk 0:02:58]} 5. cxd4 {[%clk 0:03:01]}  Nc6 {[%clk 0:02:56]} 6. Nc3 {[%clk 0:03:00]}  Nxc3 {[%clk 0:02:55]} 7. bxc3 {[%clk 0:03:00]}  g6 {[%clk 0:02:54]} 8. f4 {[%clk 0:02:59]}  Bg7 {[%clk 0:02:54]} 9. Nf3 {[%clk 0:02:59]}  d6 {[%clk 0:02:52]} 10. Bd3 {[%clk 0:02:52]}  O-O {[%clk 0:02:51]} 11. O-O {[%clk 0:02:52]}  dxe5 {[%clk 0:02:46]} 12. fxe5 {[%clk 0:02:53]}  Bg4 {[%clk 0:02:43]} 13. h3 {[%clk 0:02:39]}  Bxf3 {[%clk 0:02:40]} 14. Rxf3 {[%clk 0:02:40]}  Qb6 {[%clk 0:02:33]} 15. Kh1 {[%clk 0:02:31]}  Rad8 {[%clk 0:02:29]} 16. Rb1 {[%clk 0:02:08]}  Qc7 {[%clk 0:02:26]} 17. Bf4 {[%clk 0:01:22]}  e6 {[%clk 0:02:19]} 18. Qe2 {[%clk 0:00:58]}  Ne7 {[%clk 0:02:16]} 19. Be4 {[%clk 0:00:55]}  Nd5 {[%clk 0:02:14]} 20. Bd2 {[%clk 0:00:56]}  f6 {[%clk 0:02:10]} 21. exf6 {[%clk 0:00:55]}  Nxf6 {[%clk 0:02:07]} 22. Rxb7 {[%clk 0:00:40]}  Qd6 {[%clk 0:02:03]} 23. Bg5 {[%clk 0:00:28]}  Nxe4 {[%clk 0:01:56]} 24. Qxe4 {[%clk 0:00:28]}  Rde8 {[%clk 0:01:50]} 25. Bf4 {[%clk 0:00:19]}  Qa3 {[%clk 0:01:46]} 26. Be5 {[%clk 0:00:17]}  Bxe5 {[%clk 0:01:42]} 27. Qxe5 {[%clk 0:00:18]}  Qc1+ {[%clk 0:01:39]} 28. Kh2 {[%clk 0:00:18]}  Qh6 {[%clk 0:01:39]} 29. Rxf8+ {[%clk 0:00:16]}  Qxf8 {[%clk 0:01:37]} 30. Rxa7 {[%clk 0:00:17]}  Rb8 {[%clk 0:01:32]} 31. Qc7 {[%clk 0:00:15]}  Rb1 {[%clk 0:01:18]} 32. Qxh7# {[%clk 0:00:15]} 1-0


[Site "https://www.chess.com"]